fUST/lending_fUST_20250925
["ID","MTS","AMOUNT","RATE_DAILY","PERIOD"]
[387652657,1758799832659,-480.0,0.00019347,2]
[387652658,1758799832668,-480.0,0.00019347,2]
[387652659,1758799832678,-480.0,0.00019347,2]
[387652660,1758799832687,-480.0,0.00019347,2]
[387652661,1758799832697,-480.0,0.00019347,2]
[387652662,1758799832706,-369.09189341,0.00019347,2]
[387652663,1758799832715,-480.0,0.00019347,2]
[387652664,1758799832725,-480.0,0.00019347,2]
[387652665,1758799832735,-188.63855572,0.00019347,2]
[387652666,1758799832744,-480.0,0.00019347,2]
[387652667,1758799832754,-480.0,0.00019347,2]
[387652668,1758799832763,-480.0,0.00019347,2]
[387652669,1758799832773,-480.0,0.00019347,2]
[387652670,1758799832782,-480.0,0.00019347,2]
[387652671,1758799832792,-480.0,0.00019347,2]
[387652672,1758799832801,-430.02054,0.00019347,2]
[387652673,1758799832811,-480.0,0.00019347,2]
[387652674,1758799832820,-480.0,0.00019347,2]
[387652675,1758799832829,-480.0,0.00019347,2]
[387652676,1758799832839,-503.12958683,0.00019347,2]
[387652677,1758799832848,-480.0,0.00019347,2]
[387652678,1758799832858,-1101.9,0.00019347,2]
[387652679,1758799832867,-480.0,0.00019347,2]
[387652680,1758799832878,-481.34318913,0.00019347,2]
[387652681,1758799832887,-480.0,0.00019347,2]
[387652682,1758799832897,-162.58,0.00019347,2]
[387652683,1758799832906,-480.0,0.00019347,2]
[387652684,1758799832916,-480.0,0.00019347,2]
[387652685,1758799832926,-480.0,0.00019347,2]
[387652686,1758799832935,-481.7152655,0.00019347,2]
[387652687,1758799832945,-480.0,0.00019347,2]
[387652688,1758799832955,-480.0,0.00019347,2]
[387652689,1758799832964,-480.0,0.00019347,2]
[387652690,1758799832975,-500.0,0.00019347,2]
[387652691,1758799832985,-400.0,0.00019347,2]
[387652692,1758799832995,-500.0,0.00019347,2]
[387652693,1758799833005,-356.66419898,0.00019347,2]
[387652694,1758799833015,-500.0,0.00019347,2]
[387652695,1758799833025,-262.18,0.00019348,2]
[387652696,1758799833035,-489.97010198,0.00019348,2]
[387652697,1758799833045,-480.0,0.00019348,2]
[387652698,1758799833055,-480.0,0.00019348,2]
[387652699,1758799833066,-481.13078591,0.00019348,2]
[387652700,1758799833075,-480.0,0.00019348,2]
[387652701,1758799833086,-481.75427207,0.00019348,2]
[387652702,1758799833098,-480.0,0.00019348,2]
[387652703,1758799833108,-278.63466936,0.00019348,2]
[387652704,1758799833118,-480.0,0.00019348,2]
[387652705,1758799833130,-481.76470343,0.00019348,2]
[387652706,1758799833141,-486.10912176,0.00019348,2]
[387652707,1758799833151,-480.0,0.00019348,2]
[387652708,1758799833163,-480.0,0.00019348,2]
[387652709,1758799833175,-480.0,0.00019348,2]
[387652710,1758799833187,-487.23623252,0.00019348,2]
[387652711,1758799833199,-377.16086766,0.00019348,2]
[387652712,1758799833215,-54.56933894,0.00019348,2]
[387652713,1758799833232,-523.27279971,0.00019348,2]
[387652714,1758799833242,-480.0,0.00019348,2]
[387652715,1758799833254,-480.0,0.00019348,2]
[387652716,1758799833265,-480.0,0.00019348,2]
[387652717,1758799833275,-301.90012974,0.00019348,2]
[387652718,1758799833286,-480.0,0.00019348,2]
[387652719,1758799833297,-480.0,0.00019348,2]
[387652720,1758799833307,-480.0,0.00019348,2]
[387652721,1758799833317,-480.0,0.00019348,2]
[387652722,1758799833329,-485.91211448,0.00019348,2]
[387652723,1758799833339,-480.0,0.00019348,2]
[387652724,1758799833350,-510.76,0.00019348,2]
[387652725,1758799833360,-480.0,0.00019348,2]
[387652726,1758799833370,-480.0,0.00019348,2]
[387652727,1758799833380,-480.0,0.00019348,2]
[387652728,1758799833389,-487.51073594,0.00019348,2]
[387652729,1758799833399,-485.02749771,0.00019348,2]
[387652730,1758799833409,-416.15557253,0.00019348,2]
[387652731,1758799833418,-480.0,0.00019348,2]
[387652732,1758799833427,-480.0,0.00019348,2]
[387652733,1758799833530,-480.0,0.00019348,2]
[387652734,1758799833540,-480.0,0.00019348,2]
[387652735,1758799833550,-480.0,0.00019348,2]
[387652736,1758799833560,-489.01548928,0.00019348,2]
[387652737,1758799833569,-483.7198244,0.00019348,2]
[387652738,1758799833578,-474.99905626,0.00019348,2]
[387652739,1758799833587,-480.0,0.00019348,2]
[387652740,1758799833596,-484.99425209,0.00019348,2]
[387652741,1758799833605,-484.2666169,0.00019348,2]
[387652742,1758799833614,-480.0,0.00019348,2]
[387652743,1758799833623,-483.41996894,0.00019348,2]
[387652744,1758799833633,-300.60119866,0.00019348,2]
[387652745,1758799833646,-105.07772082,0.00019348,2]
[387652746,1758799833655,-480.0,0.00019348,2]
[387652747,1758799833664,-197.8440045,0.00019348,2]
[387652748,1758799833673,-480.0,0.00019348,2]
[387652749,1758799833683,-221.74827468,0.00019348,2]
[387652750,1758799833703,-262.74092918,0.00019348,2]
[387652751,1758799833713,-485.15306181,0.00019348,2]
[387652752,1758799833724,-480.0,0.00019348,2]
[387652753,1758799833733,-480.0,0.00019348,2]
[387652754,1758799833742,-480.0,0.00019348,2]
[387652755,1758799833752,-480.0,0.00019348,2]
[387652756,1758799833762,-480.0,0.00019348,2]
[387652757,1758799833771,-458.0559858,0.00019348,2]
[387652758,1758799833781,-480.0,0.00019348,2]
[387652759,1758799833790,-480.0,0.00019348,2]
[387652760,1758799833800,-481.83439302,0.00019348,2]
[387652761,1758799833809,-484.97697786,0.00019348,2]
[387652762,1758799833819,-480.0,0.00019348,2]
[387652763,1758799833830,-480.0,0.00019348,2]
[387652764,1758799833840,-371.86800862,0.00019348,2]
[387652765,1758799833850,-480.0,0.00019348,2]
[387652766,1758799833859,-480.0,0.00019348,2]
[387652767,1758799833869,-383.25369603,0.00019348,2]
[387652768,1758799833878,-499.5856215,0.00019348,2]
[387652769,1758799833888,-480.0,0.00019348,2]
[387652770,1758799833897,-293.66467597,0.00019348,2]
[387652771,1758799833907,-480.0,0.00019348,2]
[387652772,1758799833917,-480.0,0.00019348,2]
[387652773,1758799833927,-480.0,0.00019348,2]
[387652774,1758799833937,-332.25161325,0.00019348,2]
[387652775,1758799833946,-480.0,0.00019348,2]
[387652776,1758799833956,-480.0,0.00019348,2]
[387652777,1758799833966,-480.0,0.00019348,2]
[387652778,1758799833976,-480.0,0.00019348,2]
[387652779,1758799833986,-480.0,0.00019348,2]
[387652780,1758799833996,-480.0,0.00019348,2]
[387652781,1758799834006,-480.0,0.00019348,2]
[387652782,1758799834016,-480.0,0.00019348,2]
[387652783,1758799834025,-480.0,0.00019348,2]
[387652784,1758799834035,-520.1769416,0.00019348,2]
[387652785,1758799834045,-480.0,0.00019348,2]
[387652786,1758799834055,-2754.29,0.00019348,2]
[387652787,1758799834064,-487.69432848,0.00019348,2]
[387652788,1758799834074,-480.0,0.00019348,2]
[387652789,1758799834084,-1004.22763549,0.00019348,2]
[387652790,1758799834096,-404.80120043,0.00019348,2]
[387652791,1758799834106,-480.0,0.00019348,2]
[387652792,1758799834116,-480.0,0.00019348,2]
[387652793,1758799834126,-335.50944149,0.00019348,2]
[387652794,1758799834136,-480.0,0.00019348,2]
[387652795,1758799834146,-480.0,0.00019348,2]
[387652796,1758799834156,-480.0,0.00019348,2]
[387652797,1758799834166,-480.0,0.00019348,2]
[387652798,1758799834176,-487.71868646,0.00019348,2]
[387652799,1758799834186,-450.23292492,0.00019348,2]
[387652800,1758799834196,-489.14682966,0.00019348,2]
[387652801,1758799834207,-480.0,0.00019348,2]
[387652802,1758799834218,-480.0,0.00019348,2]
[387652803,1758799834228,-480.0,0.00019348,2]
[387652804,1758799834238,-491.91765334,0.00019348,2]
[387652805,1758799834248,-487.31335252,0.00019348,2]
[387652806,1758799834258,-480.0,0.00019348,2]
[387652807,1758799834267,-442.60662754,0.00019348,2]
[387652808,1758799834277,-482.34956189,0.00019348,2]
[387652809,1758799834287,-480.0,0.00019348,2]
[387652810,1758799834297,-480.80576267,0.00019348,2]
[387652811,1758799834307,-480.0,0.00019348,2]
[387652812,1758799834317,-487.7504481,0.00019348,2]
[387652813,1758799834327,-481.48672431,0.00019348,2]
[387652814,1758799834338,-485.93860849,0.00019348,2]
[387652815,1758799834348,-206.32701861,0.00019348,2]
[387652816,1758799834359,-480.0,0.00019348,2]
[387652817,1758799834368,-480.0,0.00019348,2]
[387652818,1758799834378,-483.8008432,0.00019348,2]
[387652819,1758799834388,-480.0,0.00019348,2]
[387652820,1758799834399,-493.87712848,0.00019348,2]
[387652821,1758799834409,-480.0,0.00019348,2]
[387652822,1758799834418,-270.18544533,0.00019348,2]
[387652823,1758799834427,-484.37245727,0.00019348,2]
[387652824,1758799834437,-480.0,0.00019348,2]
[387652825,1758799834447,-480.0,0.00019348,2]
[387652826,1758799834457,-484.69969827,0.00019348,2]
[387652827,1758799834466,-484.73907712,0.00019348,2]
[387652828,1758799834477,-480.0,0.00019348,2]
[387652829,1758799834486,-496.80224384,0.00019348,2]
[387652830,1758799834496,-998.22140236,0.00019348,2]
[387652831,1758799834506,-485.27066079,0.00019348,2]
[387652832,1758799834515,-482.60587553,0.00019348,2]
[387652833,1758799834525,-480.0,0.00019348,2]
[387652834,1758799834535,-480.0,0.00019348,2]
[387652835,1758799834544,-480.0,0.00019348,2]
[387652836,1758799834553,-480.0,0.00019348,2]
[387652837,1758799834563,-480.0,0.00019348,2]
[387652838,1758799834574,-480.0,0.00019348,2]
[387652839,1758799834584,-403.48553316,0.00019348,2]
[387652840,1758799834594,-486.31668492,0.00019348,2]
[387652841,1758799834603,-485.92541287,0.00019348,2]
[387652842,1758799834613,-480.0,0.00019348,2]
[387652843,1758799834623,-480.0,0.00019348,2]
[387652844,1758799834634,-480.0,0.00019348,2]
[387652845,1758799834643,-486.84416343,0.00019348,2]
[387652846,1758799834653,-480.0,0.00019348,2]
[387652847,1758799834662,-480.0,0.00019348,2]
[387652848,1758799834672,-487.17510761,0.00019348,2]
[387652849,1758799834681,-480.0,0.00019348,2]
[387652850,1758799834691,-483.96098079,0.00019348,2]
[387652851,1758799834702,-487.77480633,0.00019348,2]
[387652852,1758799834715,-562.2001719,0.00019348,2]
[387652853,1758799834726,-485.07400637,0.00019348,2]
[387652854,1758799834736,-480.0,0.00019348,2]
[387652855,1758799834746,-480.0,0.00019348,2]
[387652856,1758799834755,-480.0,0.00019348,2]
[387652857,1758799834765,-476.26009969,0.00019348,2]
[387652858,1758799834776,-486.45993705,0.00019348,2]
[387652859,1758799834786,-360.02595026,0.00019348,2]
[387652887,1758799838347,-480.0,0.00019346,2]
[387652889,1758799838357,-50000.0,0.00019346,2]
[387652891,1758799838367,-119.97404974,0.00019348,2]
[387652893,1758799838376,-480.0,0.00019348,2]
[387652895,1758799838385,-480.0,0.00019348,2]
[387652897,1758799838396,-480.0,0.00019348,2]
[387652899,1758799838405,-500.0,0.00019348,2]
[387652901,1758799838414,-480.0,0.00019348,2]
[387652903,1758799838423,-480.0,0.00019348,2]
[387652905,1758799838432,-480.0,0.00019348,2]
[387652907,1758799838441,-480.0,0.00019348,2]
[387652909,1758799838450,-480.0,0.00019348,2]
[387652911,1758799838459,-480.0,0.00019348,2]
[387652913,1758799838468,-480.0,0.00019348,2]
[387652915,1758799838480,-483.7972406,0.00019348,2]
[387652917,1758799838490,-482.8369745,0.00019348,2]
[387652919,1758799838499,-483.00748461,0.00019348,2]
[387652921,1758799838508,-480.0,0.00019348,2]
[387652923,1758799838518,-480.0,0.00019348,2]
[387652925,1758799838527,-480.0,0.00019348,2]
[387652927,1758799838536,-480.0,0.00019348,2]
[387652929,1758799838545,-548.82819789,0.00019348,2]
[387652931,1758799838555,-480.0,0.00019348,2]
[387652933,1758799838564,-480.0,0.00019348,2]
[387652935,1758799838573,-482.88994334,0.00019348,2]
[387652937,1758799838583,-480.0,0.00019348,2]
[387652939,1758799838592,-480.0,0.00019348,2]
[387652941,1758799838601,-692.1,0.00019348,2]
[387652943,1758799838610,-480.0,0.00019348,2]
[387652945,1758799838620,-490.14471729,0.00019348,2]
[387652947,1758799838630,-480.0,0.00019348,2]
[387652949,1758799838639,-480.0,0.00019348,2]
[387652951,1758799838648,-480.0,0.00019348,2]
[387652953,1758799838658,-480.0,0.00019348,2]
[387652955,1758799838668,-480.0,0.00019348,2]
[387652957,1758799838677,-480.0,0.00019348,2]
[387652959,1758799838686,-504.57088496,0.00019348,2]
[387652970,1758799838777,-480.0,0.00019348,2]
[387652972,1758799838787,-480.0,0.00019348,2]
[387652974,1758799838796,-480.0,0.00019348,2]
[387652976,1758799838806,-480.0,0.00019348,2]
[387652978,1758799838815,-429.2939867,0.00019348,2]
[387652980,1758799838824,-480.0,0.00019348,2]
[387652982,1758799838834,-480.0,0.00019348,2]
[387652984,1758799838843,-480.54490127,0.00019348,2]
[387652986,1758799838854,-480.0,0.00019348,2]
[387652988,1758799838863,-480.0,0.00019348,2]
[387652990,1758799838872,-480.0,0.00019348,2]
[387652992,1758799838881,-477.15793585,0.00019348,2]
[387652994,1758799838890,-480.0,0.00019348,2]
[387652996,1758799838899,-480.0,0.00019348,2]
[387652998,1758799838908,-480.0,0.00019348,2]
[387653000,1758799838917,-151.0,0.0001935,2]
[387653002,1758799838926,-151.0,0.0001935,2]
[387653004,1758799838936,-151.59310519,0.0001935,2]
[387653006,1758799838945,-151.93961096,0.0001935,2]
[387653008,1758799838954,-246.90162727,0.0001935,2]
[387653010,1758799838963,-247.14406961,0.0001935,2]
[387653012,1758799838972,-151.0,0.0001935,2]
[387653014,1758799838981,-210.16485027,0.0001935,2]
[387653016,1758799838990,-1000.0,0.0001935,2]
[387653018,1758799838999,-1000.0,0.0001935,2]
[387653020,1758799839008,-1000.0,0.0001935,2]
[387653022,1758799839017,-1000.0,0.0001935,2]
[387653024,1758799839026,-1000.0,0.0001935,2]
[387653026,1758799839036,-1000.0,0.0001935,2]
[387653028,1758799839046,-1000.0,0.0001935,2]
[387653030,1758799839055,-1000.0,0.0001935,2]
[387653032,1758799839064,-151.0,0.0001935,2]
[387653034,1758799839073,-151.0,0.0001935,2]
[387653036,1758799839082,-151.0,0.0001935,2]
[387653038,1758799839092,-151.0,0.0001935,2]
[387653040,1758799839100,-151.0,0.0001935,2]
[387653042,1758799839110,-151.0,0.0001935,2]
[387653044,1758799839121,-151.0,0.0001935,2]
[387653046,1758799839131,-1000.0,0.00019351,2]
[387653048,1758799839141,-1000.0,0.00019351,2]
[387653050,1758799839150,-1000.0,0.00019351,2]
[387653052,1758799839161,-1000.0,0.00019351,2]
[387653054,1758799839170,-370000.0,0.00019352,2]
[387653056,1758799839179,-500.0,0.00019373,2]
[387653058,1758799839191,-500.0,0.000194,2]
[387653060,1758799839201,-592.57592743,0.00019619,2]
[387653062,1758799839210,-449.72,0.00019619,2]
[387653064,1758799839222,-480.0,0.00019619,2]
[387653066,1758799839231,-480.0,0.0001962,2]
[387653068,1758799839241,-480.0,0.0001962,2]
[387653070,1758799839250,-274.61048347,0.0001962,2]
[387653072,1758799839260,-463.80579506,0.00019621,2]
[387653074,1758799839269,-480.0,0.00019621,2]
[387653076,1758799839279,-480.0,0.00019621,2]
[387653078,1758799839288,-444.2903494,0.00019621,2]
[387653080,1758799839298,-500.0,0.00019621,2]
[387653082,1758799839307,-480.0,0.00019621,2]
[387653084,1758799839317,-480.0,0.00019621,2]
[387653086,1758799839326,-1101.9,0.00019621,2]
[387653088,1758799839335,-480.0,0.00019621,2]
[387653090,1758799839345,-480.0,0.00019621,2]
[387653092,1758799839354,-162.58,0.00019621,2]
[387653094,1758799839363,-262.26204166,0.00019621,2]
[387653096,1758799839373,-480.0,0.00019621,2]
[387653098,1758799839381,-480.0,0.00019621,2]
[387653100,1758799839391,-480.0,0.00019621,2]
[387653102,1758799839401,-480.0,0.00019621,2]
[387653104,1758799839410,-478.37140587,0.00019622,2]
[387653106,1758799839419,-480.0,0.00019622,2]
[387653108,1758799839429,-480.90079408,0.00019622,2]
[387653110,1758799839437,-480.0,0.00019622,2]
[387653112,1758799839446,-480.0,0.00019622,2]
[387653114,1758799839455,-480.0,0.00019622,2]
[387653116,1758799839464,-484.03797974,0.00019622,2]
[387653118,1758799839473,-186.73847248,0.00019622,2]
[387653120,1758799839482,-480.0,0.00019622,2]
[387653122,1758799839491,-279.68005056,0.00019622,2]
[387653124,1758799839501,-480.0,0.00019622,2]
[387653126,1758799839510,-488.48632724,0.00019622,2]
[387653128,1758799839519,-480.0,0.00019622,2]
[387653130,1758799839529,-483.01581914,0.00019622,2]
[387653132,1758799839538,-484.85520433,0.00019622,2]
[387653134,1758799839547,-480.0,0.00019622,2]
[387653136,1758799839556,-480.0,0.00019622,2]
[387653138,1758799839565,-480.0,0.00019622,2]
[387653140,1758799839574,-480.0,0.00019622,2]
[387653142,1758799839584,-480.0,0.00019622,2]
[387653144,1758799839593,-299.32925618,0.00019622,2]
[387653146,1758799839602,-480.0,0.00019622,2]
[387653148,1758799839611,-417.8035782,0.00019622,2]
[387653150,1758799839620,-480.0,0.00019622,2]
[387653152,1758799839630,-480.0,0.00019622,2]
[387653154,1758799839639,-2754.29,0.00019622,2]
[387653156,1758799839647,-480.0,0.00019622,2]
[387653158,1758799839656,-480.0,0.00019622,2]
[387653160,1758799839665,-480.0,0.00019622,2]
[387653162,1758799839675,-489.24740533,0.00019622,2]
[387653164,1758799839684,-480.0,0.00019622,2]
[387653166,1758799839693,-485.64248376,0.00019622,2]
[387653168,1758799839702,-480.0,0.00019622,2]
[387653170,1758799839712,-425.26702985,0.00019622,2]
[387653171,1758799839721,-480.0,0.00019622,2]
[387653173,1758799839730,-480.0,0.00019622,2]
[387653176,1758799839741,-473.65361572,0.00019622,2]
[387653178,1758799839750,-480.0,0.00019622,2]
[387653180,1758799839759,-480.0,0.00019622,2]
[387653182,1758799839768,-583.39143882,0.00019622,2]
[387653184,1758799839776,-480.0,0.00019622,2]
[387653185,1758799839783,-480.0,0.00019622,2]
[387653187,1758799839790,-486.60339594,0.00019622,2]
[387653190,1758799839800,-480.0,0.00019622,2]
[387653192,1758799839809,-480.0,0.00019622,2]
[387653194,1758799839816,-480.0,0.00019622,2]
[387653196,1758799839824,-460.00586468,0.00019622,2]
[387653198,1758799839834,-484.52172885,0.00019622,2]
[387653200,1758799839843,-422.85730773,0.00019622,2]
[387653201,1758799839852,-512.39797834,0.00019622,2]
[387653203,1758799839862,-480.0,0.00019622,2]
[387653205,1758799839874,-480.0,0.00019622,2]
[387653207,1758799839884,-500.0,0.00019622,2]
[387653209,1758799839894,-480.0,0.00019622,2]
[387653210,1758799839904,-392.18117267,0.00019622,2]
[387653212,1758799839914,-483.64938974,0.00019622,2]
[387653214,1758799839924,-486.81290291,0.00019622,2]
[387653216,1758799839933,-484.72136391,0.00019622,2]
[387653218,1758799839943,-480.0,0.00019622,2]
[387653219,1758799839952,-480.0,0.00019622,2]
[387653221,1758799839962,-480.0,0.00019622,2]
[387653223,1758799839971,-480.0,0.00019622,2]
[387653225,1758799839981,-480.0,0.00019622,2]
[387653227,1758799839990,-480.0,0.00019622,2]
[387653228,1758799840000,-480.0,0.00019622,2]
[387653230,1758799840010,-458.54071435,0.00019622,2]
[387653232,1758799840020,-480.0,0.00019622,2]
[387653234,1758799840029,-480.0,0.00019622,2]
[387653235,1758799840038,-692.1,0.00019622,2]
[387653237,1758799840048,-480.0,0.00019622,2]
[387653239,1758799840057,-480.0,0.00019622,2]
[387653241,1758799840066,-480.0,0.00019622,2]
[387653243,1758799840075,-582.11728596,0.00019622,2]
[387653245,1758799840084,-480.0,0.00019622,2]
[387653246,1758799840094,-480.0,0.00019622,2]
[387653248,1758799840104,-274.36901406,0.00019622,2]
[387653250,1758799840118,-480.0,0.00019622,2]
[387653252,1758799840128,-480.0,0.00019622,2]
[387653253,1758799840138,-480.0,0.00019622,2]
[387653255,1758799840148,-480.0,0.00019622,2]
[387653257,1758799840157,-480.0,0.00019622,2]
[387653258,1758799840165,-480.0,0.00019622,2]
[387653260,1758799840174,-480.0,0.00019622,2]
[387653262,1758799840183,-480.0,0.00019622,2]
[387653264,1758799840193,-480.0,0.00019622,2]
[387653265,1758799840203,-151.0,0.00019624,2]
[387653267,1758799840212,-198.87602421,0.00019624,2]
[387653269,1758799840222,-151.0,0.00019624,2]
[387653271,1758799840231,-151.0,0.00019624,2]
[387653273,1758799840241,-151.0,0.00019624,2]
[387653274,1758799840251,-151.0,0.00019624,2]
[387653276,1758799840260,-480.0,0.00019893,2]
[387653278,1758799840270,-480.0,0.00019895,2]
[387653280,1758799840279,-480.0,0.00019895,2]
[387653281,1758799840289,-480.0,0.00019895,2]
[387653283,1758799840299,-1101.9,0.00019895,2]
[387653285,1758799840308,-480.0,0.00019895,2]
[387653287,1758799840318,-162.59625366,0.00019895,2]
[387653288,1758799840328,-480.0,0.00019895,2]
[387653290,1758799840338,-308.71138659,0.00019895,2]
[387653292,1758799840348,-480.0,0.00019895,2]
[387653294,1758799840357,-480.0,0.00019896,2]
[387653295,1758799840366,-160.07,0.00019896,2]
[387653297,1758799840376,-480.0,0.00019896,2]
[387653299,1758799840385,-2754.29,0.00019896,2]
[387653301,1758799840394,-472.12,0.00019896,2]
[387653303,1758799840403,-480.0,0.00019896,2]
[387653305,1758799840411,-480.0,0.00019896,2]
[387653306,1758799840421,-480.0,0.00019896,2]
[387653308,1758799840430,-480.0,0.00019896,2]
[387653310,1758799840439,-480.0,0.00019896,2]
[387653312,1758799840448,-482.81777262,0.00019896,2]
[387653314,1758799840457,-480.0,0.00019896,2]
[387653315,1758799840467,-480.0,0.00019896,2]
[387653317,1758799840476,-474.93872619,0.00019896,2]
[387653319,1758799840485,-480.0,0.00019896,2]
[387653321,1758799840495,-480.0,0.00019896,2]
[387653323,1758799840504,-480.0,0.00019896,2]
[387653325,1758799840513,-480.0,0.00019896,2]
[387653327,1758799840522,-460.18280044,0.00019896,2]
[387653328,1758799840531,-198.81128936,0.00019896,2]
[387653330,1758799840541,-480.0,0.00019896,2]
[387653332,1758799840550,-480.0,0.00019896,2]
[387653334,1758799840559,-480.0,0.00019896,2]
[387653336,1758799840569,-489.65704816,0.00019896,2]
[387653337,1758799840579,-474.92346152,0.00019896,2]
[387653339,1758799840588,-480.0,0.00019896,2]
[387653341,1758799840597,-692.1,0.00019896,2]
[387653343,1758799840607,-480.0,0.00019896,2]
[387653351,1758799840689,-480.0,0.00019896,2]
[387653353,1758799840699,-480.0,0.00019896,2]
[387653355,1758799840709,-492.84269361,0.00019896,2]
[387653357,1758799840718,-480.0,0.00019896,2]
[387653358,1758799840727,-482.53058973,0.00019896,2]
[387653360,1758799840737,-480.0,0.00019896,2]
[387653361,1758799840746,-198.0,0.00019898,2]
[387653363,1758799840755,-151.0,0.00019898,2]
[387653365,1758799840765,-151.0,0.00019898,2]
[387653367,1758799840774,-198.0,0.00019898,2]
[387653369,1758799840783,-557.85149185,0.000199,2]
[387653371,1758799840792,-500.0,0.00019921,2]
[387653372,1758799840801,-500.0,0.00019973,2]
[387653374,1758799840810,-504.83976007,0.00019973,2]
[387653376,1758799840821,-500.0,0.00019973,2]
[387653378,1758799840830,-238.57457338,0.00019973,2]
[387653380,1758799840840,-100000.0,0.0001999,2]
[387653382,1758799840850,-454.008928,0.00020167,2]
[387653383,1758799840859,-584.88,0.00020169,2]
[387653385,1758799840870,-480.0,0.00020169,2]
[387653387,1758799840879,-480.0,0.00020169,2]
[387653389,1758799840888,-1101.9,0.00020169,2]
[387653391,1758799840898,-480.0,0.00020169,2]
[387653393,1758799840907,-480.0,0.00020169,2]
[387653394,1758799840917,-480.0,0.0002017,2]
[387653396,1758799840927,-480.0,0.0002017,2]
[387653398,1758799840937,-2754.29,0.0002017,2]
[387653400,1758799840946,-480.0,0.0002017,2]
[387653402,1758799840956,-200.03261799,0.0002017,2]
[387653404,1758799840965,-480.0,0.0002017,2]
[387653406,1758799840975,-480.0,0.0002017,2]
[387653407,1758799840985,-442.89,0.0002017,2]
[387653409,1758799840994,-480.0,0.0002017,2]
[387653411,1758799841005,-692.1,0.0002017,2]
[387653413,1758799841017,-480.0,0.0002017,2]
[387653415,1758799841026,-491.20635136,0.0002017,2]
[387653417,1758799841035,-480.0,0.0002017,2]
[387653419,1758799841046,-480.0,0.0002017,2]
[387653421,1758799841055,-151.0,0.00020172,2]
[387653423,1758799841065,-151.0,0.00020172,2]
[387653425,1758799841075,-480.0,0.00020443,2]
[387653426,1758799841084,-480.0,0.00020443,2]
[387653428,1758799841093,-1101.9,0.00020443,2]
[387653430,1758799841103,-480.0,0.00020443,2]
[387653432,1758799841112,-480.0,0.00020443,2]
[387653434,1758799841122,-480.0,0.00020444,2]
[387653436,1758799841133,-480.0,0.00020444,2]
[387653437,1758799841143,-2754.29,0.00020444,2]
[387653439,1758799841152,-576.88880964,0.00020444,2]
[387653441,1758799841162,-480.0,0.00020444,2]
[387653443,1758799841171,-480.0,0.00020444,2]
[387653445,1758799841182,-692.1,0.00020444,2]
[387653447,1758799841191,-480.0,0.00020444,2]
[387653449,1758799841202,-151.0,0.00020446,2]
[387653450,1758799841213,-263.92557554,0.00020446,2]
[387653452,1758799841224,-434.54488845,0.00020496,2]
[387653454,1758799841233,-1000.0,0.00020521,2]
[387653456,1758799841243,-1000.0,0.00020521,2]
[387653458,1758799841252,-28567.35474008,0.00020627,3]
[387653460,1758799841262,-417.15472785,0.00020627,3]
[387653462,1758799841271,-401.60789146,0.00020675,2]
[387653463,1758799841281,-590.74062657,0.00020684,2]
[387653465,1758799841291,-480.0,0.00020717,2]
[387653467,1758799841300,-480.0,0.00020717,2]